bitfinex/quotes_SOLUSD_20250611
["timestamp","ask_amount","ask_price","bid_price","bid_amount"]
[1749625209053,36.23116109,165.84,165.77,18.64964886]
[1749625209054,10.23116109,165.8,165.77,18.64964886]
[1749625209641,26.0,165.8,165.77,18.64964886]
[1749625209844,26.0,165.8,165.78,18.64964886]
[1749625210250,26.0,165.8,165.76,18.64964886]
[1749625210450,26.0,165.8,165.77,10.23116109]
[1749625210657,26.0,165.8,165.78,10.23116109]
[1749625211236,15.53116109,165.84,165.8,18.64964886]
[1749625211759,15.53116109,165.84,165.78,10.23116109]
[1749625212339,15.53116109,165.84,165.8,18.64964886]
[1749625214432,5.3,165.84,165.8,18.64964886]
[1749625214630,7.7079,165.89,165.82,10.23116109]
[1749625214830,10.23116109,165.86,165.82,18.64964886]
[1749625215136,26.0,165.85,165.82,18.64964886]
[1749625216640,7.7079,165.89,165.82,18.64964886]
[1749625216849,36.23116109,165.86,165.82,18.64964886]
[1749625217364,36.23116109,165.86,165.79,18.64964886]
[1749625217532,10.23116109,165.85,165.78,95.48015823]
[1749625217740,36.23116109,165.82,165.79,18.64964886]
[1749625218744,26.0,165.82,165.78,18.64964886]
[1749625219643,36.23116109,165.82,165.78,18.64964886]
[1749625220155,10.23116109,165.81,165.78,18.64964886]
[1749625220743,10.23116109,165.8,165.76,18.64964886]
[1749625221145,36.23116109,165.79,165.74,10.23116109]
[1749625221356,10.23116109,165.77,165.73,18.64964886]
[1749625221657,26.0,165.78,165.75,18.64964886]
[1749625222461,26.0,165.78,165.75,18.64964886]
[1749625223545,10.23116109,165.79,165.73,28.88080995]
[1749625223744,10.23116109,165.78,165.73,28.88080995]
[1749625223943,5.3,165.81,165.75,18.64964886]
[1749625223944,10.23116109,165.79,165.75,18.64964886]
[1749625224262,10.23116109,165.78,165.73,28.88080995]
[1749625225461,26.0,165.82,165.74,10.23116109]
[1749625225644,10.23116109,165.8,165.75,10.23116109]
[1749625225849,15.51116109,165.81,165.77,18.64964886]
[1749625227361,15.51116109,165.81,165.74,18.64964886]
[1749625227568,15.51116109,165.81,165.77,18.64964886]
[1749625228368,10.23116109,165.79,165.74,10.23116109]
[1749625228751,36.23116109,165.79,165.73,28.88080995]
[1749625228951,10.23116109,165.78,165.73,28.88080995]
[1749625229547,36.23116109,165.79,165.73,28.88080995]
[1749625229748,26.0,165.79,165.76,10.23116109]
[1749625231964,8.0201,165.87,165.76,10.23116109]
[1749625231965,10.23116109,165.86,165.78,28.88080995]
[1749625232170,26.0,165.86,165.78,18.64964886]
[1749625232374,36.23116109,165.86,165.81,10.23116109]
[1749625232573,10.23116109,165.86,165.81,10.23116109]
[1749625232870,10.23116109,165.86,165.78,24.26892848]
[1749625233172,10.23116109,165.86,165.81,10.23116109]
[1749625234461,15.51116109,165.87,165.83,18.64964886]
[1749625235951,10.23116109,165.87,165.83,18.64964886]
[1749625239678,5.28,165.88,165.83,18.64964886]
[1749625239874,26.0,165.9,165.85,18.64964886]
[1749625240062,15.51116109,165.9,165.85,10.23116109]
[1749625240263,5.28,165.9,165.86,10.23116109]
[1749625240458,15.51116109,165.9,165.86,10.23116109]
[1749625240966,15.51116109,165.9,165.85,10.23116109]
[1749625241168,10.23116109,165.86,165.79,1.5328]
[1749625241376,10.23116109,165.8,165.78,18.64964886]
[1749625241584,10.23116109,165.84,165.75,18.64964886]
[1749625241766,10.23116109,165.8,165.76,10.23116109]
[1749625242091,10.23116109,165.8,165.75,18.64964886]
[1749625242394,5.28,165.82,165.78,10.23116109]
[1749625242598,5.28,165.82,165.8,18.64964886]
[1749625242771,5.28,165.82,165.8,28.88080995]
[1749625242965,10.23116109,165.85,165.8,28.88080995]
[1749625243170,5.28,165.86,165.81,10.23116109]
[1749625243377,5.28,165.86,165.82,18.64964886]
[1749625243378,10.23116109,165.85,165.82,18.64964886]
[1749625243573,10.23116109,165.85,165.8,10.23116109]
[1749625243874,10.23116109,165.84,165.8,18.64964886]
[1749625246970,10.23116109,165.83,165.76,18.64964886]
[1749625247289,10.23116109,165.82,165.77,10.23116109]
[1749625247591,10.23116109,165.84,165.8,10.23116109]
[1749625248168,10.23116109,165.84,165.8,18.64964886]
[1749625248985,10.23116109,165.83,165.8,18.64964886]
[1749625249579,10.23116109,165.84,165.8,18.64964886]
[1749625250591,5.28,165.86,165.8,18.64964886]
[1749625250898,10.23116109,165.83,165.79,18.64964886]
[1749625252798,5.28,165.86,165.79,18.64964886]
[1749625253092,10.23116109,165.83,165.79,18.64964886]
[1749625254486,10.23116109,165.82,165.78,18.64964886]
[1749625255986,5.28,165.86,165.78,18.64964886]
[1749625256186,10.23116109,165.82,165.78,18.64964886]
[1749625258497,10.23116109,165.83,165.78,10.23116109]
[1749625258678,10.23116109,165.84,165.79,10.23116109]
[1749625260301,5.28,165.86,165.77,18.64964886]
[1749625260505,10.23116109,165.84,165.79,10.23116109]
[1749625260682,10.23116109,165.85,165.81,18.64964886]
[1749625260889,10.23116109,165.84,165.8,18.64964886]
[1749625261085,10.23116109,165.83,165.8,18.64964886]
[1749625261707,10.23116109,165.84,165.8,18.64964886]
[1749625262006,10.23116109,165.83,165.8,18.64964886]
[1749625262299,10.23116109,165.84,165.8,18.64964886]
[1749625262699,7.7963,165.9,165.83,28.88080995]
[1749625262997,15.51116109,165.89,165.85,18.64964886]
[1749625263384,10.23116109,165.87,165.81,18.64964886]
[1749625263581,10.23116109,165.86,165.81,28.88080995]
[1749625263886,10.23116109,165.88,165.85,18.64964886]
[1749625264088,5.28,165.89,165.85,18.64964886]
[1749625264281,15.51116109,165.89,165.85,18.64964886]
[1749625264483,10.23116109,165.88,165.85,18.64964886]
[1749625264702,5.28,165.89,165.85,18.64964886]
[1749625265008,10.23116109,165.88,165.83,10.23116109]
[1749625266691,5.28,165.89,165.83,10.23116109]
[1749625266888,10.23116109,165.88,165.85,18.64964886]
[1749625267590,5.28,165.89,165.85,18.64964886]
[1749625267793,10.23116109,165.88,165.85,18.64964886]
[1749625268703,10.23116109,165.88,165.81,18.64964886]
[1749625268902,10.23116109,165.88,165.85,18.64964886]
[1749625269411,5.28,165.9,165.85,18.64964886]
[1749625269586,10.23116109,165.88,165.85,18.64964886]
[1749625269785,10.23116109,165.89,165.85,18.64964886]
[1749625269986,5.28,165.9,165.85,18.64964886]
[1749625270204,5.28,165.9,165.82,18.64964886]
[1749625270400,10.23116109,165.88,165.85,18.64964886]
[1749625270600,5.28,165.9,165.85,18.64964886]
[1749625270601,10.23116109,165.89,165.85,18.64964886]
[1749625271004,31.28,165.91,165.85,18.64964886]
[1749625271212,10.23116109,165.89,165.85,18.64964886]
[1749625271492,31.28,165.91,165.85,18.64964886]
[1749625271493,10.23116109,165.91,165.87,18.64964886]
[1749625271705,10.23116109,165.9,165.87,18.64964886]
[1749625271893,10.23116109,165.9,165.86,18.64964886]
[1749625274321,5.28,165.92,165.86,18.64964886]
[1749625274510,10.23116109,165.9,165.86,18.64964886]
[1749625275805,26.0,165.89,165.86,28.88080995]
[1749625276001,26.0,165.89,165.87,10.23116109]
[1749625276510,36.23116109,165.9,165.86,18.64964886]
[1749625276701,10.23116109,165.88,165.84,18.64964886]
[1749625278110,10.23116109,165.87,165.81,91.4472]
[1749625278305,10.23116109,165.86,165.82,18.64964886]
[1749625278498,10.23116109,165.86,165.82,28.88080995]
[1749625279794,26.0,165.89,165.82,28.88080995]
[1749625279994,10.23116109,165.86,165.82,28.88080995]
[1749625280210,26.0,165.89,165.82,28.88080995]
[1749625280417,10.23116109,165.86,165.82,28.88080995]
[1749625281814,26.0,165.89,165.82,28.88080995]
[1749625282005,10.23116109,165.86,165.82,18.64964886]
[1749625282202,10.23116109,165.85,165.82,18.64964886]
[1749625282420,10.23116109,165.85,165.81,18.64964886]
[1749625282617,26.0,165.89,165.81,18.64964886]
[1749625282928,10.23116109,165.85,165.81,18.64964886]
[1749625284124,10.23116109,165.85,165.8,18.64964886]
[1749625284298,10.23116109,165.86,165.81,10.23116109]
[1749625285209,10.23116109,165.85,165.81,10.23116109]
[1749625285520,10.23116109,165.84,165.8,28.88080995]
[1749625285716,10.23116109,165.84,165.8,18.64964886]
[1749625286105,10.23116109,165.83,165.78,18.64964886]
[1749625286308,10.23116109,165.82,165.78,18.64964886]
[1749625286509,5.28,165.86,165.78,18.64964886]
[1749625286717,10.23116109,165.83,165.78,18.64964886]
[1749625286906,10.23116109,165.83,165.8,18.64964886]
[1749625287101,5.28,165.86,165.8,18.64964886]
[1749625287322,10.23116109,165.84,165.8,18.64964886]
[1749625287522,10.23116109,165.83,165.78,18.64964886]
[1749625287822,10.23116109,165.83,165.8,18.64964886]
[1749625288724,26.0,165.83,165.8,18.64964886]
[1749625289215,26.0,165.83,165.78,18.64964886]
[1749625289525,36.23116109,165.83,165.8,18.64964886]
[1749625291843,10.23116109,165.83,165.78,18.64964886]
[1749625292013,10.23116109,165.79,165.78,18.64964886]
[1749625292208,10.23116109,165.79,165.75,18.64964886]
[1749625294645,10.23116109,165.84,165.74,24.6]
[1749625294646,10.23116109,165.78,165.74,18.64964886]
[1749625299736,10.23116109,165.84,165.74,18.64964886]
[1749625300114,10.23116109,165.79,165.74,28.88080995]
[1749625300315,10.23116109,165.79,165.74,10.23116109]
[1749625300541,10.23116109,165.78,165.73,28.88080995]
[1749625303137,10.23116109,165.84,165.73,18.64964886]
[1749625303329,10.23116109,165.78,165.73,28.88080995]
[1749625304143,10.23116109,165.78,165.73,18.64964886]
[1749625304334,10.23116109,165.78,165.73,28.88080995]
[1749625307145,10.23116109,165.76,165.73,18.64964886]
[1749625307346,10.23116109,165.74,165.72,18.64964886]
[1749625307532,10.23116109,165.73,165.72,18.64964886]
[1749625307733,10.23116109,165.75,165.72,18.64964886]
[1749625308040,10.23116109,165.76,165.72,18.64964886]
[1749625314658,10.23116109,165.77,165.72,28.88080995]
[1749625315355,10.23116109,165.81,165.76,28.88080995]
[1749625315943,1.6666,165.84,165.78,18.64964886]
[1749625316137,10.23116109,165.82,165.78,18.64964886]
[1749625317538,10.23116109,165.81,165.76,10.23116109]
[1749625318365,10.23116109,165.8,165.75,28.88080995]
[1749625319859,15.51116109,165.84,165.75,28.88080995]
[1749625319860,10.23116109,165.78,165.75,18.64964886]
[1749625321063,10.23116109,165.76,165.75,18.64964886]
[1749625321244,10.23116109,165.77,165.75,18.64964886]
[1749625321445,10.23116109,165.77,165.72,10.23116109]
[1749625321657,10.23116109,165.76,165.72,18.64964886]
[1749625324341,10.23116109,165.75,165.72,18.64964886]
[1749625325150,10.23116109,165.76,165.72,18.64964886]
[1749625327171,6.364,165.8,165.72,28.88080995]
[1749625327348,10.23116109,165.77,165.72,28.88080995]
[1749625328268,6.364,165.8,165.73,10.23116109]
[1749625328461,10.23116109,165.78,165.73,10.23116109]
[1749625328647,10.23116109,165.78,165.72,18.64964886]
[1749625328848,10.23116109,165.78,165.73,10.23116109]
[1749625329376,27.6573,165.82,165.73,10.23116109]
[1749625329571,10.23116109,165.78,165.73,10.23116109]
[1749625329772,27.6573,165.82,165.73,10.23116109]
[1749625329961,10.23116109,165.77,165.72,28.88080995]
[1749625330160,10.23116109,165.76,165.72,28.88080995]
[1749625330549,10.23116109,165.77,165.72,28.88080995]
[1749625331664,10.23116109,165.79,165.75,18.64964886]
[1749625332046,10.23116109,165.79,165.72,5.60634477]
[1749625332254,10.23116109,165.78,165.73,28.88080995]
[1749625334148,10.23116109,165.78,165.73,18.64964886]
[1749625334554,1.6573,165.82,165.74,10.23116109]
[1749625334776,10.23116109,165.79,165.74,10.23116109]
[1749625336676,6.9373,165.82,165.73,28.88080995]
[1749625336863,10.23116109,165.78,165.73,28.88080995]
[1749625337980,10.23116109,165.77,165.73,18.64964886]
[1749625339676,6.9373,165.82,165.75,10.23116109]
[1749625339982,10.23116109,165.8,165.75,10.23116109]
[1749625340178,10.23116109,165.79,165.74,28.88080995]
[1749625341482,10.23116109,165.8,165.75,10.23116109]
[1749625341781,10.23116109,165.8,165.73,18.64964886]
[1749625341782,36.23116109,165.79,165.73,18.64964886]
[1749625341977,10.23116109,165.78,165.73,28.88080995]
[1749625342283,10.23116109,165.77,165.73,18.64964886]
[1749625342673,10.23116109,165.76,165.73,18.64964886]
[1749625342875,10.23116109,165.75,165.71,100.38281067]
[1749625343186,10.23116109,165.74,165.72,18.64964886]
[1749625343872,10.23116109,165.75,165.72,18.64964886]
[1749625344782,10.23116109,165.74,165.72,18.64964886]
[1749625346164,10.23116109,165.73,165.7,4.88985811]
[1749625346364,10.23116109,165.73,165.7,18.64964886]
[1749625347272,10.23116109,165.72,165.7,18.64964886]
[1749625348865,10.23116109,165.71,165.7,18.64964886]
[1749625350393,10.23116109,165.71,165.67,5.60634477]
[1749625350598,10.23116109,165.7,165.67,18.64964886]
[1749625355401,10.23116109,165.69,165.67,18.64964886]
[1749625356269,1.6651,165.75,165.67,18.64964886]
[1749625356477,10.23116109,165.71,165.67,18.64964886]
[1749625356679,10.23116109,165.71,165.67,28.88080995]
[1749625356881,10.23116109,165.73,165.68,10.23116109]
[1749625357293,10.23116109,165.72,165.67,28.88080995]
[1749625358484,5.28,165.77,165.67,28.88080995]
[1749625358684,10.23116109,165.72,165.67,28.88080995]
[1749625359477,10.23116109,165.76,165.67,28.88080995]
[1749625359799,10.23116109,165.73,165.67,18.64964886]
[1749625360096,10.23116109,165.73,165.68,10.23116109]
[1749625360298,5.28,165.77,165.68,10.23116109]
[1749625360490,10.23116109,165.73,165.69,18.64964886]
[1749625362387,10.23116109,165.73,165.68,28.88080995]
[1749625362711,10.23116109,165.69,165.65,18.64964886]
[1749625362912,6.4065,165.72,165.64,18.64964886]
[1749625362913,10.23116109,165.66,165.64,18.64964886]
[1749625363074,10.23116109,165.66,165.63,18.64964886]
[1749625364581,6.4065,165.72,165.63,18.64964886]
[1749625364582,10.23116109,165.67,165.63,18.64964886]
[1749625365306,10.23116109,165.64,165.57,15.83750586]
[1749625365605,10.23116109,165.62,165.58,18.64964886]
[1749625365909,10.23116109,165.62,165.58,44.64964886]
[1749625366111,10.23116109,165.61,165.57,18.64964886]
[1749625366401,15.51116109,165.68,165.57,18.64964886]
[1749625366402,10.23116109,165.6,165.57,18.64964886]
[1749625366602,10.23116109,165.59,165.57,18.64964886]
[1749625366906,10.23116109,165.6,165.57,18.64964886]
[1749625369484,10.23116109,165.61,165.57,18.64964886]
[1749625370197,26.0,165.67,165.57,28.88080995]
[1749625370198,10.23116109,165.62,165.57,28.88080995]
[1749625370414,10.23116109,165.62,165.58,10.23116109]
[1749625371284,10.23116109,165.62,165.57,28.88080995]
[1749625374013,26.0,165.67,165.57,28.88080995]
[1749625374230,10.23116109,165.62,165.57,28.88080995]
[1749625374720,10.23116109,165.62,165.59,18.64964886]
[1749625381092,10.23116109,165.6,165.59,18.64964886]
[1749625381291,10.23116109,165.6,165.57,18.64964886]
[1749625381513,10.23116109,165.59,165.57,18.64964886]
[1749625381706,10.23116109,165.58,165.57,18.64964886]
[1749625381912,10.23116109,165.59,165.57,18.64964886]
[1749625383213,26.0,165.63,165.57,18.64964886]
[1749625383615,10.23116109,165.59,165.57,18.64964886]
[1749625383813,10.23116109,165.6,165.57,18.64964886]
[1749625384516,10.23116109,165.59,165.52,98.87621294]
[1749625384712,26.0,165.63,165.53,18.64964886]
[1749625384713,10.23116109,165.57,165.53,18.64964886]
[1749625385103,10.23116109,165.57,165.53,43.26964886]
[1749625385905,10.23116109,165.6,165.53,18.64964886]
[1749625386117,10.23116109,165.57,165.53,43.26964886]
[1749625387319,10.23116109,165.56,165.53,43.26964886]
[1749625387824,10.23116109,165.56,165.53,18.64964886]
[1749625390222,26.0,165.63,165.53,18.64964886]
[1749625390426,10.23116109,165.57,165.53,18.64964886]
[1749625391417,10.23116109,165.6,165.53,18.64964886]
[1749625391617,10.23116109,165.55,165.53,18.64964886]
[1749625391818,10.23116109,165.54,165.53,18.64964886]
[1749625392015,10.23116109,165.54,165.5,18.64964886]
[1749625392324,42.44996109,165.6,165.5,18.64964886]
[1749625392325,10.23116109,165.53,165.5,18.64964886]
[1749625393013,10.23116109,165.53,165.5,43.26964886]
[1749625393999,10.23116109,165.54,165.5,43.26964886]
[1749625394220,10.23116109,165.54,165.5,18.64964886]
[1749625394913,10.23116109,165.53,165.5,18.64964886]
[1749625395115,10.23116109,165.52,165.48,1.5228]
[1749625395419,10.23116109,165.52,165.49,18.64964886]
[1749625395798,10.23116109,165.53,165.49,18.64964886]
[1749625395999,5.28,165.57,165.49,18.64964886]
[1749625396200,10.23116109,165.53,165.49,18.64964886]
[1749625397333,10.23116109,165.52,165.47,10.23116109]
[1749625397500,10.23116109,165.53,165.48,28.88080995]
[1749625398330,10.23116109,165.53,165.46,26.0]
[1749625398331,10.23116109,165.54,165.49,10.23116109]
[1749625398501,10.23116109,165.54,165.5,18.64964886]
[1749625399807,5.28,165.55,165.5,18.64964886]
[1749625400030,10.23116109,165.55,165.5,18.64964886]
[1749625400329,10.23116109,165.55,165.5,28.88080995]
[1749625400922,5.28,165.57,165.5,18.64964886]
[1749625401117,10.23116109,165.54,165.5,18.64964886]
[1749625402027,10.23116109,165.53,165.49,18.64964886]
[1749625403107,10.23116109,165.52,165.49,18.64964886]
[1749625404430,10.23116109,165.53,165.49,18.64964886]
[1749625404817,10.23116109,165.52,165.49,18.64964886]
[1749625405204,5.28,165.57,165.49,18.64964886]
[1749625405205,10.23116109,165.53,165.49,18.64964886]
[1749625405718,10.23116109,165.54,165.49,28.88080995]
[1749625406733,10.23116109,165.53,165.49,18.64964886]
[1749625408539,10.23116109,165.54,165.49,28.88080995]
[1749625410110,10.23116109,165.54,165.49,18.64964886]
[1749625410345,10.23116109,165.54,165.49,28.88080995]
[1749625410924,5.28,165.57,165.5,10.23116109]
[1749625411144,10.23116109,165.55,165.5,10.23116109]
[1749625411734,10.23116109,165.55,165.49,28.88080995]
[1749625412140,6.8199,165.59,165.51,10.23116109]
[1749625412347,10.23116109,165.54,165.52,18.64964886]
[1749625412529,10.23116109,165.53,165.52,18.64964886]
[1749625412731,10.23116109,165.54,165.52,18.64964886]
[1749625413125,10.23116109,165.53,165.49,24.62]
[1749625413336,10.23116109,165.51,165.47,43.26964886]
[1749625414047,10.23116109,165.51,165.47,53.50080995]
[1749625418153,10.23116109,165.52,165.47,53.50080995]
[1749625418342,6.2795,165.57,165.49,28.88080995]
[1749625418549,10.23116109,165.54,165.49,53.50080995]
[1749625418739,10.23116109,165.53,165.49,43.26964886]
[1749625419244,6.2795,165.57,165.49,43.26964886]
[1749625419430,10.23116109,165.53,165.49,43.26964886]
[1749625420656,6.2795,165.57,165.49,43.26964886]
[1749625420835,10.23116109,165.54,165.49,43.26964886]
[1749625421638,10.23116109,165.54,165.49,53.50080995]
[1749625422929,10.23116109,165.54,165.49,43.26964886]
[1749625423258,10.23116109,165.54,165.49,53.50080995]
[1749625428179,1.5399,165.59,165.51,10.23116109]
[1749625428468,10.23116109,165.57,165.53,18.64964886]
[1749625428754,10.23116109,165.57,165.52,10.23116109]
[1749625428755,10.23116109,165.56,165.52,18.64964886]
[1749625430063,1.5399,165.59,165.52,18.64964886]
[1749625430249,10.23116109,165.57,165.52,30.50240995]
[1749625431362,10.23116109,165.56,165.52,30.50240995]
[1749625431860,10.23116109,165.56,165.52,18.64964886]
[1749625432557,10.23116109,165.55,165.52,18.64964886]
[1749625432858,15.51116109,165.6,165.52,18.64964886]
[1749625433034,10.23116109,165.55,165.52,18.64964886]
[1749625433660,10.23116109,165.56,165.52,18.64964886]
[1749625433863,10.23116109,165.56,165.52,28.88080995]
[1749625434053,5.28,165.6,165.52,28.88080995]
[1749625434249,10.23116109,165.56,165.52,28.88080995]
[1749625434839,10.23116109,165.56,165.52,18.64964886]
[1749625435665,10.23116109,165.56,165.52,28.88080995]
[1749625437668,10.23116109,165.56,165.52,18.64964886]
[1749625438963,10.23116109,165.55,165.52,18.64964886]
[1749625439263,10.23116109,165.54,165.52,18.64964886]
[1749625439474,10.23116109,165.55,165.52,18.64964886]
[1749625440145,10.23116109,165.54,165.52,18.64964886]
[1749625440349,10.23116109,165.53,165.52,18.64964886]
[1749625440559,10.23116109,165.54,165.52,18.64964886]
[1749625442142,5.26,165.59,165.5,28.88080995]
[1749625442350,5.26,165.59,165.5,34.50643996]
[1749625442351,10.23116109,165.56,165.5,34.50643996]
[1749625442548,5.26,165.59,165.5,34.50643996]
[1749625442739,10.23116109,165.56,165.5,34.50643996]
[1749625442946,10.23116109,165.56,165.51,5.62563001]
[1749625443141,10.23116109,165.56,165.51,15.8567911]
[1749625443971,10.23116109,165.56,165.51,5.62563001]
[1749625444759,10.23116109,165.56,165.5,34.50643996]
[1749625444959,10.23116109,165.56,165.51,5.62563001]
[1749625445157,10.23116109,165.55,165.5,24.27527887]
[1749625445361,10.23116109,165.54,165.5,24.27527887]
[1749625445744,10.23116109,165.54,165.5,18.64964886]
[1749625448671,10.23116109,165.55,165.5,18.64964886]
[1749625449763,10.23116109,165.55,165.5,24.27527887]
[1749625449959,5.26,165.59,165.5,24.27527887]
[1749625450258,10.23116109,165.55,165.5,24.27527887]
[1749625451674,10.23116109,165.55,165.5,18.64964886]
[1749625452568,10.23116109,165.55,165.5,24.27527887]
[1749625453576,10.23116109,165.55,165.5,18.64964886]
[1749625453877,10.23116109,165.55,165.5,24.27527887]
[1749625456485,26.0,165.56,165.5,24.27527887]
[1749625456661,10.23116109,165.55,165.5,24.27527887]
[1749625458676,10.23116109,165.56,165.5,34.50643996]
[1749625459375,6.5699244,165.54,165.5,24.27527887]
[1749625459578,6.5699244,165.53,165.5,18.64964886]
[1749625459963,27.6174,165.58,165.5,18.64964886]
[1749625460290,6.5699244,165.52,165.5,18.64964886]
[1749625460470,6.5699244,165.52,165.49,18.64964886]
[1749625461274,6.5699244,165.53,165.49,18.64964886]
[1749625462280,6.5699244,165.53,165.49,24.27527887]
[1749625462488,5.26,165.59,165.52,18.64964886]
[1749625462668,6.5699244,165.57,165.52,25.21957326]
[1749625462874,6.5699244,165.57,165.52,18.64964886]
[1749625463495,6.5699244,165.57,165.52,24.27527887]
[1749625464668,6.5699244,165.57,165.52,30.84520327]
[1749625465286,10.26246112,165.57,165.52,34.53773999]
[1749625467583,10.26246112,165.57,165.52,24.27527887]
[1749625467785,10.26246112,165.57,165.52,34.53773999]
[1749625468597,5.26,165.6,165.53,10.26246112]
[1749625468805,10.26246112,165.58,165.53,10.26246112]
[1749625469004,10.26246112,165.58,165.52,34.53773999]
[1749625470790,10.26246112,165.57,165.52,24.27527887]
[1749625470993,10.26246112,165.55,165.52,24.27527887]
[1749625471591,10.26246112,165.6,165.52,24.27527887]
[1749625471806,10.26246112,165.56,165.52,24.27527887]
[1749625472703,11.271,165.61,165.52,24.27527887]
[1749625472909,10.26246112,165.57,165.52,34.53773999]
[1749625479621,11.271,165.61,165.57,18.64964886]
[1749625479622,10.26246112,165.61,165.57,18.64964886]
[1749625483394,10.26246112,165.59,165.56,24.6]
[1749625484017,10.26246112,165.58,165.56,24.6]
[1749625484207,10.26246112,165.58,165.54,26.133]
[1749625484600,10.26246112,165.58,165.55,18.64964886]
[1749625484906,10.26246112,165.6,165.55,28.91210998]
[1749625485522,10.26246112,165.61,165.57,18.64964886]
[1749625485699,10.26246112,165.61,165.57,43.24964886]
[1749625486105,10.26246112,165.62,165.57,53.51210998]
[1749625486610,5.26,165.65,165.59,10.26246112]
[1749625486812,1.5833,165.66,165.59,10.26246112]
[1749625486813,10.26246112,165.64,165.59,10.26246112]
[1749625487217,10.26246112,165.64,165.6,24.6]
[1749625487601,5.26,165.66,165.6,24.6]
[1749625487602,10.26246112,165.65,165.61,18.64964886]
[1749625488107,10.26246112,165.64,165.61,18.64964886]
[1749625492313,31.26,165.68,165.61,18.64964886]
[1749625492616,10.26246112,165.66,165.61,28.91210998]
[1749625492822,10.26246112,165.66,165.61,18.64964886]
[1749625492999,10.26246112,165.66,165.61,28.91210998]
[1749625497422,10.26246112,165.66,165.61,18.64964886]
[1749625497621,10.26246112,165.66,165.61,28.91210998]
[1749625497812,10.26246112,165.65,165.61,18.64964886]
[1749625499232,6.56206216,165.65,165.61,18.64964886]
[1749625500425,6.56206216,165.68,165.65,18.64964886]
[1749625500628,6.56206216,165.7,165.65,25.21171102]
[1749625500938,8.1117,165.75,165.67,18.64964886]
[1749625501141,146.7,165.8,165.7,18.64964886]
[1749625501307,5.26,165.82,165.72,18.64964886]
[1749625501646,6.56206216,165.8,165.72,18.64964886]
[1749625501936,26.0,165.81,165.72,18.64964886]
[1749625501937,6.56206216,165.81,165.76,6.56206216]
[1749625502108,26.24824864,165.92,165.78,6.56206216]
[1749625502109,5.26,165.86,165.78,6.56206216]
[1749625502313,1.5765,165.88,165.8,18.64964886]
[1749625502532,6.56206216,165.85,165.8,25.21171102]
[1749625502748,26.0,165.88,165.8,18.64964886]
[1749625503037,6.56206216,165.86,165.82,18.64964886]
[1749625503329,26.0,165.81,165.8,18.64964886]
[1749625503533,26.0,165.81,165.74,1.5224]
[1749625503534,36.22959381,165.81,165.74,1.5224]
[1749625503832,36.22959381,165.81,165.7,1.5334]
[1749625503833,10.22959381,165.76,165.7,1.5334]
[1749625504135,10.22959381,165.74,165.71,18.64964886]
[1749625504337,31.26,165.81,165.71,18.64964886]
[1749625504510,10.22959381,165.73,165.71,18.64964886]
[1749625504911,10.22959381,165.72,165.71,18.64964886]
[1749625505113,10.22959381,165.72,165.68,18.64964886]
[1749625505343,10.22959381,165.76,165.68,18.64964886]
[1749625505344,10.22959381,165.71,165.68,18.64964886]
[1749625506115,10.22959381,165.69,165.65,26.0]
[1749625506326,10.22959381,165.7,165.65,18.64964886]
[1749625506545,10.22959381,165.71,165.67,18.64964886]
[1749625506725,10.22959381,165.72,165.67,18.64964886]
[1749625507036,10.22959381,165.73,165.69,18.64964886]
[1749625507337,10.22959381,165.72,165.69,18.64964886]
[1749625507512,10.22959381,165.72,165.68,18.64964886]
[1749625507937,10.22959381,165.73,165.68,28.87924267]
[1749625508518,1.624,165.78,165.68,28.87924267]
[1749625508729,10.22959381,165.73,165.68,28.87924267]
[1749625508933,10.22959381,165.73,165.68,18.64964886]
[1749625509158,1.624,165.78,165.69,10.22959381]
[1749625509159,10.22959381,165.74,165.69,10.22959381]
[1749625509819,10.22959381,165.76,165.68,6.2805]
[1749625510011,10.22959381,165.76,165.71,28.87924267]
[1749625510838,10.22959381,165.75,165.71,18.64964886]
[1749625511021,10.22959381,165.73,165.71,18.64964886]
[1749625511444,10.22959381,165.74,165.71,18.64964886]
[1749625513338,10.22959381,165.75,165.71,18.64964886]
[1749625513643,8.0468,165.82,165.75,18.64964886]
[1749625513644,11.9998,165.82,165.75,18.64964886]
[1749625513822,10.22959381,165.78,165.75,18.64964886]
[1749625514021,10.22959381,165.78,165.73,10.22959381]
[1749625515216,26.0,165.79,165.73,10.22959381]
[1749625515414,10.22959381,165.78,165.73,10.22959381]
[1749625515814,10.22959381,165.76,165.72,18.64964886]
[1749625516539,10.22959381,165.77,165.72,28.87924267]
[1749625517620,10.22959381,165.77,165.73,10.22959381]
[1749625517821,26.0,165.79,165.73,10.22959381]
[1749625518138,10.22959381,165.78,165.75,18.64964886]
[1749625518561,10.22959381,165.78,165.73,28.87924267]
[1749625519031,10.22959381,165.78,165.73,143.83924267]
[1749625519431,10.22959381,165.78,165.73,133.60964886]
[1749625519623,10.22959381,165.78,165.73,143.83924267]